[Event "*** Titled Tuesday Blitz"]
[Site "Chess.com"]
[Date "2020.11.24"]
[Round "1"]
[White "dopolian"]
[Black "petrpalachev"]
[Result "1-0"]
[WhiteElo "2400"]
[BlackElo "2714"]
[TimeControl "180+1"]
[EndTime "10:24:18 PST"]
[Termination "dopolian won on time"]

1. Nf3 {[%clk 0:02:59.5]} 1... Nf6 {[%clk 0:02:57.9]} 2. c4 {[%clk 0:02:58.2]}
2... g6 {[%clk 0:02:57.4]} 3. Nc3 {[%clk 0:02:57.6]} 3... Bg7 {[%clk 0:02:58.3]}
4. g3 {[%clk 0:02:57.6]} 4... O-O {[%clk 0:02:59.2]} 5. Bg2 {[%clk 0:02:57.8]}
5... d6 {[%clk 0:02:59.8]} 6. O-O {[%clk 0:02:57]} 6... e5 {[%clk 0:02:59.3]} 7.
d4 {[%clk 0:02:57.1]} 7... Nbd7 {[%clk 0:02:57.4]} 8. Bg5 {[%clk 0:02:55]} 8...
h6 {[%clk 0:02:51.8]} 9. dxe5 {[%clk 0:02:41.4]} 9... dxe5 {[%clk 0:02:39.3]}
10. Bxf6 {[%clk 0:02:28.3]} 10... Bxf6 {[%clk 0:02:40.2]} 11. Qd2 {[%clk
0:02:27]} 11... Bg7 {[%clk 0:02:38.2]} 12. Rad1 {[%clk 0:02:25]} 12... c6 {[%clk
0:02:34.7]} 13. Ne4 {[%clk 0:02:21.9]} 13... Qc7 {[%clk 0:02:26.8]} 14. Nd6
{[%clk 0:02:19.6]} 14... Nc5 {[%clk 0:02:20]} 15. b4 {[%clk 0:02:18]} 15... Ne6
{[%clk 0:02:18.7]} 16. c5 {[%clk 0:02:12.4]} 16... a5 {[%clk 0:02:18.2]} 17. a3
{[%clk 0:02:10.8]} 17... axb4 {[%clk 0:02:18.3]} 18. axb4 {[%clk 0:02:11.7]}
18... Rd8 {[%clk 0:02:13.7]} 19. Qe3 {[%clk 0:02:05.6]} 19... f6 {[%clk
0:01:38.2]} 20. Nh4 {[%clk 0:01:49.8]} 20... Nf8 {[%clk 0:01:32.1]} 21. b5
{[%clk 0:01:08.3]} 21... cxb5 {[%clk 0:01:29.4]} 22. Nxb5 {[%clk 0:01:06.8]}
22... Qe7 {[%clk 0:01:26.9]} 23. Rd6 {[%clk 0:00:58.6]} 23... g5 {[%clk
0:01:05.7]} 24. Nf3 {[%clk 0:00:41.8]} 24... Bf5 {[%clk 0:00:55.8]} 25. Rfd1
{[%clk 0:00:38.3]} 25... Ne6 {[%clk 0:00:55.7]} 26. h4 {[%clk 0:00:29.3]} 26...
Rxd6 {[%clk 0:00:49.4]} 27. Nxd6 {[%clk 0:00:28.6]} 27... Bc2 {[%clk 0:00:45.9]}
28. Rc1 {[%clk 0:00:28.2]} 28... Bg6 {[%clk 0:00:44.6]} 29. Nd2 {[%clk 0:00:24]}
29... Rb8 {[%clk 0:00:33.8]} 30. hxg5 {[%clk 0:00:24.1]} 30... hxg5 {[%clk
0:00:33.4]} 31. Bd5 {[%clk 0:00:23.2]} 31... Kh7 {[%clk 0:00:27.8]} 32. N2c4
{[%clk 0:00:21.4]} 32... Nd4 {[%clk 0:00:25.8]} 33. Be4 {[%clk 0:00:18.4]} 33...
f5 {[%clk 0:00:24.9]} 34. Bd3 {[%clk 0:00:15.8]} 34... e4 {[%clk 0:00:22.4]} 35.
Bb1 {[%clk 0:00:13.4]} 35... Rf8 {[%clk 0:00:21.6]} 36. Rd1 {[%clk 0:00:04.6]}
36... Nc6 {[%clk 0:00:16.5]} 37. Nb6 {[%clk 0:00:03.8]} 37... Bh6 {[%clk
0:00:12.9]} 38. Nd5 {[%clk 0:00:03.9]} 38... Qg7 {[%clk 0:00:12.6]} 39. Qc3
{[%clk 0:00:03.8]} 39... f4 {[%clk 0:00:11.9]} 40. Qxg7+ {[%clk 0:00:03.7]}
40... Kxg7 {[%clk 0:00:12.8]} 41. gxf4 {[%clk 0:00:04]} 41... gxf4 {[%clk
0:00:13.4]} 42. Bxe4 {[%clk 0:00:03.5]} 42... Bxe4 {[%clk 0:00:09.6]} 43. Nxe4
{[%clk 0:00:04.4]} 43... f3 {[%clk 0:00:09.5]} 44. exf3 {[%clk 0:00:04.1]} 44...
Rxf3 {[%clk 0:00:10.4]} 45. Nd6 {[%clk 0:00:04]} 45... Ne5 {[%clk 0:00:08]} 46.
Nxb7 {[%clk 0:00:03.2]} 46... Rb3 {[%clk 0:00:06.5]} 47. Nd6 {[%clk 0:00:02.8]}
47... Nd3 {[%clk 0:00:05.7]} 48. Nf5+ {[%clk 0:00:02.8]} 48... Kg6 {[%clk
0:00:05.4]} 49. Nxh6 {[%clk 0:00:03.7]} 49... Kxh6 {[%clk 0:00:05.7]} 50. c6
{[%clk 0:00:03.7]} 50... Nf4 {[%clk 0:00:02.2]} 51. Nxf4 {[%clk 0:00:02.8]}
51... Rc3 {[%clk 0:00:02.6]} 52. c7 {[%clk 0:00:02.1]} 52... Rxc7 {[%clk
0:00:02.1]} 53. Rd6+ {[%clk 0:00:02.8]} 53... Kh7 {[%clk 0:00:01.1]} 54. Nh3
{[%clk 0:00:03.2]} 54... Rc1+ {[%clk 0:00:01.6]} 55. Kg2 {[%clk 0:00:03.2]}
55... Rc3 {[%clk 0:00:02.5]} 56. Rd4 {[%clk 0:00:03]} 56... Rc7 {[%clk
0:00:03.4]} 57. Rg4 {[%clk 0:00:03.2]} 57... Kh6 {[%clk 0:00:03.6]} 58. Kg3
{[%clk 0:00:03.9]} 58... Kh7 {[%clk 0:00:04.5]} 59. f4 {[%clk 0:00:04.1]} 59...
Rd7 {[%clk 0:00:04.9]} 60. Kh4 {[%clk 0:00:04.4]} 60... Re7 {[%clk 0:00:05.2]}
61. Ng5+ {[%clk 0:00:04.9]} 61... Kh6 {[%clk 0:00:05.1]} 62. Nf3 {[%clk
0:00:04.8]} 62... Re1 {[%clk 0:00:05.1]} 63. Ne5 {[%clk 0:00:04.6]} 63... Rh1+
{[%clk 0:00:04.8]} 64. Kg3 {[%clk 0:00:05.3]} 64... Rg1+ {[%clk 0:00:05.7]} 65.
Kf3 {[%clk 0:00:05.8]} 65... Ra1 {[%clk 0:00:06.3]} 66. Ke4 {[%clk 0:00:06.1]}
66... Ra4+ {[%clk 0:00:05.7]} 67. Kf5 {[%clk 0:00:06.6]} 67... Ra8 {[%clk
0:00:06.6]} 68. Rh4+ {[%clk 0:00:06.9]} 68... Kg7 {[%clk 0:00:06.8]} 69. Kg5
{[%clk 0:00:07.5]} 69... Ra1 {[%clk 0:00:05.2]} 70. f5 {[%clk 0:00:07]} 70...
Rg1+ {[%clk 0:00:05.3]} 71. Rg4 {[%clk 0:00:07.4]} 71... Rh1 {[%clk 0:00:05.2]}
72. f6+ {[%clk 0:00:07.4]} 72... Kf8 {[%clk 0:00:03.6]} 73. f7 {[%clk
0:00:06.5]} 73... Kg7 {[%clk 0:00:02.6]} 74. Kf5+ {[%clk 0:00:06]} 74... Kh7
{[%clk 0:00:02.3]} 75. Ke6 {[%clk 0:00:03.7]} 75... Rf1 {[%clk 0:00:01.9]} 76.
Ke7 {[%clk 0:00:03.3]} 76... Rf5 {[%clk 0:00:01.3]} 77. f8=Q {[%clk 0:00:02.1]}
77... Rxe5+ {[%clk 0:00:01.7]} 78. Kd6 {[%clk 0:00:02.5]} 78... Rd5+ {[%clk
0:00:01.7]} 79. Ke6 {[%clk 0:00:02.2]} 79... Re5+ {[%clk 0:00:02]} 80. Kd6
{[%clk 0:00:02.8]} 80... Rd5+ {[%clk 0:00:02.2]} 81. Kc6 {[%clk 0:00:03.4]}
81... Rd6+ {[%clk 0:00:01.4]} 82. Qxd6 {[%clk 0:00:03.4]} 1-0

[Event "*** Titled Tuesday Blitz"]
[Site "Chess.com"]
[Date "2020.11.24"]
[Round "1"]
[White "StockholmMissile"]
[Black "Legendinunknown"]
[Result "1/2-1/2"]
[WhiteElo "2374"]
[BlackElo "2679"]
[TimeControl "180+1"]
[EndTime "10:24:24 PST"]
[Termination "Game drawn by stalemate"]

1. d4 {[%clk 0:03:00.5]} 1... Nf6 {[%clk 0:02:56.5]} 2. c4 {[%clk 0:03:00.5]}
2... e6 {[%clk 0:02:56.5]} 3. Nf3 {[%clk 0:03:00.5]} 3... Bb4+ {[%clk
0:02:55.6]} 4. Bd2 {[%clk 0:03:00.1]} 4... a5 {[%clk 0:02:55.1]} 5. g3 {[%clk
0:03:00.2]} 5... d5 {[%clk 0:02:54.8]} 6. Bg2 {[%clk 0:02:59.6]} 6... dxc4
{[%clk 0:02:54.8]} 7. O-O {[%clk 0:02:55.9]} 7... O-O {[%clk 0:02:54.2]} 8. Nc3
{[%clk 0:02:47]} 8... Nc6 {[%clk 0:02:51.9]} 9. Bg5 {[%clk 0:02:37.6]} 9... Be7
{[%clk 0:02:50.5]} 10. e3 {[%clk 0:02:34]} 10... h6 {[%clk 0:02:47.3]} 11. Bxf6
{[%clk 0:02:32.5]} 11... Bxf6 {[%clk 0:02:48.2]} 12. Nd2 {[%clk 0:02:32]} 12...
e5 {[%clk 0:02:41.1]} 13. d5 {[%clk 0:02:30.3]} 13... Ne7 {[%clk 0:02:35.4]} 14.
Nxc4 {[%clk 0:02:28.3]} 14... Nf5 {[%clk 0:02:35.2]} 15. Ne4 {[%clk 0:02:22.5]}
15... Nd6 {[%clk 0:02:33.6]} 16. Ncxd6 {[%clk 0:02:07.7]} 16... cxd6 {[%clk
0:02:32.6]} 17. Nxf6+ {[%clk 0:02:07.9]} 17... Qxf6 {[%clk 0:02:31.8]} 18. Rc1
{[%clk 0:02:08.5]} 18... Qg6 {[%clk 0:02:14.9]} 19. Rc7 {[%clk 0:02:05]} 19...
b6 {[%clk 0:02:14.6]} 20. Qc2 {[%clk 0:01:43.4]} 20... Qxc2 {[%clk 0:01:48.7]}
21. Rxc2 {[%clk 0:01:44.3]} 21... Ba6 {[%clk 0:01:48.7]} 22. Rfc1 {[%clk
0:01:43.1]} 22... Rfc8 {[%clk 0:01:48.7]} 23. Bh3 {[%clk 0:01:43.3]} 23... Rc5
{[%clk 0:01:46.9]} 24. Rxc5 {[%clk 0:01:16.2]} 24... bxc5 {[%clk 0:01:43.5]} 25.
Bf1 {[%clk 0:01:16.4]} 25... Kf8 {[%clk 0:01:36.6]} 26. Bxa6 {[%clk 0:01:14.9]}
26... Rxa6 {[%clk 0:01:37.5]} 27. Rc2 {[%clk 0:01:13.3]} 27... f5 {[%clk
0:01:34.7]} 28. f3 {[%clk 0:00:51.8]} 28... Rb6 {[%clk 0:01:28]} 29. b3 {[%clk
0:00:49.9]} 29... Ke7 {[%clk 0:01:27.1]} 30. Kf2 {[%clk 0:00:48.8]} 30... Rb4
{[%clk 0:01:19.8]} 31. Rc4 {[%clk 0:00:45.6]} 31... g5 {[%clk 0:01:11.1]} 32. e4
{[%clk 0:00:34]} 32... fxe4 {[%clk 0:01:07.9]} 33. fxe4 {[%clk 0:00:33.8]} 33...
Rb8 {[%clk 0:00:51.6]} 34. Ke3 {[%clk 0:00:31.1]} 34... g4 {[%clk 0:00:50.5]}
35. Ke2 {[%clk 0:00:25.1]} 35... Kd7 {[%clk 0:00:49.8]} 36. Rc1 {[%clk
0:00:24.8]} 36... a4 {[%clk 0:00:47.6]} 37. Rc3 {[%clk 0:00:17.3]} 37... Kc7
{[%clk 0:00:42.7]} 38. Kd3 {[%clk 0:00:16.4]} 38... axb3 {[%clk 0:00:35.7]} 39.
axb3 {[%clk 0:00:16.3]} 39... Ra8 {[%clk 0:00:36.1]} 40. Rc2 {[%clk 0:00:16.7]}
40... Kb6 {[%clk 0:00:35.2]} 41. Rf2 {[%clk 0:00:16.6]} 41... Kb5 {[%clk
0:00:31.2]} 42. Rf6 {[%clk 0:00:16.4]} 42... Ra3 {[%clk 0:00:21.8]} 43. Kc3
{[%clk 0:00:16.2]} 43... c4 {[%clk 0:00:21.4]} 44. Rxd6 {[%clk 0:00:16]} 44...
Rxb3+ {[%clk 0:00:21.4]} 45. Kc2 {[%clk 0:00:16.3]} 45... Re3 {[%clk 0:00:21.1]}
46. Rxh6 {[%clk 0:00:15]} 46... Rxe4 {[%clk 0:00:21.3]} 47. d6 {[%clk
0:00:14.3]} 47... Kc6 {[%clk 0:00:20.4]} 48. Kc3 {[%clk 0:00:14]} 48... Kd7
{[%clk 0:00:19.9]} 49. Rg6 {[%clk 0:00:13.4]} 49... Rd4 {[%clk 0:00:20.1]} 50.
Kb4 {[%clk 0:00:10.5]} 50... Re4 {[%clk 0:00:18.2]} 51. Kc3 {[%clk 0:00:10.5]}
51... Kc6 {[%clk 0:00:18.4]} 52. Rh6 {[%clk 0:00:10.1]} 52... Rd4 {[%clk
0:00:18]} 53. Rg6 {[%clk 0:00:09.8]} 53... Kc5 {[%clk 0:00:16.9]} 54. Rh6 {[%clk
0:00:07.9]} 54... Rd3+ {[%clk 0:00:16.6]} 55. Kc2 {[%clk 0:00:08.3]} 55... Rxd6
{[%clk 0:00:17]} 56. Rh5 {[%clk 0:00:05.5]} 56... Kd4 {[%clk 0:00:16.3]} 57. Rg5
{[%clk 0:00:05.8]} 57... e4 {[%clk 0:00:16.3]} 58. Rxg4 {[%clk 0:00:06.1]} 58...
Ke3 {[%clk 0:00:16.5]} 59. Kc3 {[%clk 0:00:05.4]} 59... Rc6 {[%clk 0:00:16.6]}
60. h4 {[%clk 0:00:04.8]} 60... Rc7 {[%clk 0:00:14.7]} 61. h5 {[%clk 0:00:04.8]}
61... Rh7 {[%clk 0:00:14.6]} 62. Rg5 {[%clk 0:00:04.7]} 62... Kf3 {[%clk
0:00:14.5]} 63. Kxc4 {[%clk 0:00:04.9]} 63... e3 {[%clk 0:00:14.6]} 64. Rf5+
{[%clk 0:00:05.3]} 64... Ke4 {[%clk 0:00:14.1]} 65. Rf4+ {[%clk 0:00:05.2]}
65... Ke5 {[%clk 0:00:13.5]} 66. Kd3 {[%clk 0:00:05.8]} 66... Rxh5 {[%clk
0:00:13.2]} 67. Kxe3 {[%clk 0:00:06.1]} 67... Rg5 {[%clk 0:00:13.5]} 68. Kf3
{[%clk 0:00:06.4]} 68... Rf5 {[%clk 0:00:13.7]} 69. Rxf5+ {[%clk 0:00:05.3]}
69... Kxf5 {[%clk 0:00:14.6]} 70. g4+ {[%clk 0:00:05.6]} 70... Kg5 {[%clk
0:00:14.9]} 71. Kg3 {[%clk 0:00:06.5]} 71... Kg6 {[%clk 0:00:14.8]} 72. Kf4
{[%clk 0:00:07.4]} 72... Kf6 {[%clk 0:00:14.8]} 73. g5+ {[%clk 0:00:08.3]} 73...
Kg6 {[%clk 0:00:14.9]} 74. Kg4 {[%clk 0:00:09.2]} 74... Kg7 {[%clk 0:00:15]} 75.
Kf5 {[%clk 0:00:09.3]} 75... Kf7 {[%clk 0:00:15.3]} 76. Ke5 {[%clk 0:00:09.8]}
76... Kg6 {[%clk 0:00:15.2]} 77. Kf4 {[%clk 0:00:10.7]} 77... Kg7 {[%clk
0:00:14.8]} 78. Kf3 {[%clk 0:00:11]} 78... Kg6 {[%clk 0:00:14.9]} 79. Kg4 {[%clk
0:00:11.3]} 79... Kg7 {[%clk 0:00:15]} 80. Kf5 {[%clk 0:00:11.9]} 80... Kf7
{[%clk 0:00:15.2]} 81. g6+ {[%clk 0:00:12.5]} 81... Kg7 {[%clk 0:00:15.3]} 82.
Kg5 {[%clk 0:00:12.8]} 82... Kg8 {[%clk 0:00:15.3]} 83. Kf6 {[%clk 0:00:12.1]}
83... Kf8 {[%clk 0:00:14.6]} 84. g7+ {[%clk 0:00:12.7]} 84... Kg8 {[%clk
0:00:14.5]} 85. Kg6 {[%clk 0:00:13.6]} 1/2-1/2

[Event "*** Titled Tuesday Blitz"]
[Site "Chess.com"]
[Date "2020.11.24"]
[Round "1"]
[White "MattyDPerrine"]
[Black "MomchilPetkov"]
[Result "0-1"]
[WhiteElo "2368"]
[BlackElo "2698"]
[TimeControl "180+1"]
[EndTime "10:24:25 PST"]
[Termination "MomchilPetkov won by resignation"]

1. e4 {[%clk 0:03:00.9]} 1... g6 {[%clk 0:02:52.4]} 2. d4 {[%clk 0:03:00.6]}
2... Bg7 {[%clk 0:02:50.7]} 3. Nc3 {[%clk 0:03:00.9]} 3... c6 {[%clk 0:02:38.9]}
4. h3 {[%clk 0:03:00.6]} 4... d5 {[%clk 0:02:36.6]} 5. Nf3 {[%clk 0:02:54.7]}
5... dxe4 {[%clk 0:02:35.4]} 6. Nxe4 {[%clk 0:02:55.6]} 6... Nf6 {[%clk
0:02:35.5]} 7. Bd3 {[%clk 0:02:52.1]} 7... O-O {[%clk 0:02:30.2]} 8. O-O {[%clk
0:02:50.6]} 8... Nbd7 {[%clk 0:02:22.8]} 9. Nxf6+ {[%clk 0:02:39]} 9... exf6
{[%clk 0:02:22.2]} 10. Be3 {[%clk 0:02:31.8]} 10... Nb6 {[%clk 0:02:22.1]} 11.
c4 {[%clk 0:02:27.3]} 11... Be6 {[%clk 0:02:19.4]} 12. Qc2 {[%clk 0:02:18.5]}
12... Qc7 {[%clk 0:02:15.6]} 13. Rad1 {[%clk 0:01:54.8]} 13... Rad8 {[%clk
0:02:12.5]} 14. Rfe1 {[%clk 0:01:50.2]} 14... Rfe8 {[%clk 0:02:12.7]} 15. Qc1
{[%clk 0:01:45.5]} 15... Qc8 {[%clk 0:01:51.2]} 16. Qc2 {[%clk 0:01:45.4]} 16...
Bf8 {[%clk 0:01:47.5]} 17. Rb1 {[%clk 0:01:28.7]} 17... Na8 {[%clk 0:01:18.6]}
18. b4 {[%clk 0:01:20.3]} 18... Nc7 {[%clk 0:01:18.8]} 19. a4 {[%clk 0:01:20]}
19... a6 {[%clk 0:01:15.2]} 20. a5 {[%clk 0:01:19.5]} 20... Bd6 {[%clk
0:01:12.5]} 21. Nh2 {[%clk 0:01:02.8]} 21... Bxh2+ {[%clk 0:01:06]} 22. Kxh2
{[%clk 0:01:02]} 22... Bf5 {[%clk 0:00:42.6]} 23. Rbd1 {[%clk 0:00:22.8]} 23...
Bxd3 {[%clk 0:00:40.5]} 24. Qxd3 {[%clk 0:00:22.5]} 24... Rd7 {[%clk 0:00:32.7]}
25. Qe2 {[%clk 0:00:12.2]} 25... Rde7 {[%clk 0:00:30.1]} 26. Qf3 {[%clk
0:00:12]} 26... Qf5 {[%clk 0:00:22.3]} 27. Qxf5 {[%clk 0:00:09.8]} 27... gxf5
{[%clk 0:00:23.2]} 28. d5 {[%clk 0:00:10.7]} 28... cxd5 {[%clk 0:00:23.6]} 29.
cxd5 {[%clk 0:00:11.5]} 29... Nb5 {[%clk 0:00:21.7]} 30. Bd2 {[%clk 0:00:06.6]}
30... Rxe1 {[%clk 0:00:14.5]} 31. Bxe1 {[%clk 0:00:07.5]} 31... Kf8 {[%clk
0:00:11]} 32. f3 {[%clk 0:00:08]} 32... Rd8 {[%clk 0:00:11.1]} 33. Bg3 {[%clk
0:00:08.5]} 33... Ke7 {[%clk 0:00:11.2]} 34. Re1+ {[%clk 0:00:07.9]} 34... Kd7
{[%clk 0:00:11.7]} 35. d6 {[%clk 0:00:07.2]} 35... Nxd6 {[%clk 0:00:08.6]} 36.
Bxd6 {[%clk 0:00:07.8]} 36... Kxd6 {[%clk 0:00:08.7]} 37. Rd1+ {[%clk
0:00:08.7]} 37... Kc7 {[%clk 0:00:09.3]} 38. Rc1+ {[%clk 0:00:08.9]} 38... Kd7
{[%clk 0:00:07.3]} 39. Rd1+ {[%clk 0:00:09.1]} 39... Ke7 {[%clk 0:00:08]} 40.
Re1+ {[%clk 0:00:09.5]} 40... Kf8 {[%clk 0:00:08.6]} 41. Rc1 {[%clk 0:00:10.1]}
41... Rd4 {[%clk 0:00:08.7]} 42. Rc7 {[%clk 0:00:07.1]} 42... Rxb4 {[%clk
0:00:08.1]} 43. Kg3 {[%clk 0:00:08]} 43... h5 {[%clk 0:00:07.6]} 44. h4 {[%clk
0:00:08.4]} 44... Kg7 {[%clk 0:00:07.8]} 45. Rd7 {[%clk 0:00:08.1]} 45... f4+
{[%clk 0:00:08.1]} 46. Kh3 {[%clk 0:00:08]} 46... Rb5 {[%clk 0:00:08.6]} 47. Rc7
{[%clk 0:00:08.2]} 47... Kg6 {[%clk 0:00:09]} 48. Rd7 {[%clk 0:00:07.4]} 48...
Kg7 {[%clk 0:00:09.4]} 49. Rc7 {[%clk 0:00:07.6]} 49... Kf8 {[%clk 0:00:10]} 50.
Rd7 {[%clk 0:00:05.3]} 50... Ke8 {[%clk 0:00:10.1]} 51. Rc7 {[%clk 0:00:05.8]}
51... Rb1 {[%clk 0:00:10.7]} 52. Kh2 {[%clk 0:00:05.2]} 52... Rb2 {[%clk
0:00:11.1]} 53. Kh1 {[%clk 0:00:02.7]} 53... Rb5 {[%clk 0:00:10.5]} 54. Kh2
{[%clk 0:00:02.1]} 54... b6 {[%clk 0:00:10.9]} 55. axb6 {[%clk 0:00:01.4]} 55...
Rxb6 {[%clk 0:00:11.8]} 56. Ra7 {[%clk 0:00:02.1]} 56... Re6 {[%clk 0:00:11.9]}
57. Kg1 {[%clk 0:00:03]} 57... Kf8 {[%clk 0:00:12.2]} 58. Kf2 {[%clk 0:00:03.9]}
58... Kg7 {[%clk 0:00:12.7]} 59. Rb7 {[%clk 0:00:04.7]} 59... Kg6 {[%clk
0:00:13.1]} 60. Ra7 {[%clk 0:00:05.6]} 60... Rc6 {[%clk 0:00:13.3]} 61. Rb7
{[%clk 0:00:06.1]} 61... Rc2+ {[%clk 0:00:13.7]} 62. Kg1 {[%clk 0:00:06.7]}
62... Ra2 {[%clk 0:00:14.2]} 63. Ra7 {[%clk 0:00:05.5]} 63... a5 {[%clk
0:00:14.6]} 64. Ra6 {[%clk 0:00:05.7]} 64... a4 {[%clk 0:00:15.2]} 65. Ra5
{[%clk 0:00:06.3]} 65... a3 {[%clk 0:00:15.1]} 66. Kh2 {[%clk 0:00:06.8]} 66...
Ra1 {[%clk 0:00:13.7]} 67. Ra4 {[%clk 0:00:05.2]} 67... a2 {[%clk 0:00:11.5]}
68. Ra5 {[%clk 0:00:04.7]} 68... Kg7 {[%clk 0:00:11.7]} 69. Ra4 {[%clk
0:00:03.5]} 69... Kh7 {[%clk 0:00:12.1]} 70. Ra5 {[%clk 0:00:03.8]} 70... Kg6
{[%clk 0:00:12.5]} 71. Ra4 {[%clk 0:00:04.1]} 71... Kf5 {[%clk 0:00:12.8]} 72.
Ra5+ {[%clk 0:00:04.6]} 72... Ke6 {[%clk 0:00:13.4]} 73. Ra4 {[%clk 0:00:04.2]}
73... Kd5 {[%clk 0:00:13.4]} 74. Ra5+ {[%clk 0:00:04.5]} 74... Kc4 {[%clk
0:00:12.8]} 75. Ra8 {[%clk 0:00:05.1]} 75... Kb3 {[%clk 0:00:12.1]} 76. Rb8+
{[%clk 0:00:05.6]} 76... Kc3 {[%clk 0:00:12.5]} 77. Rc8+ {[%clk 0:00:06]} 77...
Kd3 {[%clk 0:00:12.9]} 78. Ra8 {[%clk 0:00:06]} 78... Ke2 {[%clk 0:00:12.7]} 79.
Ra4 {[%clk 0:00:04.3]} 79... Kf2 {[%clk 0:00:11.5]} 80. Ra7 {[%clk 0:00:04.2]}
80... Kf1 {[%clk 0:00:09.3]} 81. Ra6 {[%clk 0:00:02.5]} 81... f5 {[%clk
0:00:08.9]} 82. Ra5 {[%clk 0:00:02.5]} 82... Re1 {[%clk 0:00:04.5]} 83. Rxa2
{[%clk 0:00:02.5]} 83... Re2 {[%clk 0:00:04.8]} 84. Rxe2 {[%clk 0:00:02.3]}
84... Kxe2 {[%clk 0:00:05.7]} 85. Kh3 {[%clk 0:00:02.8]} 85... Kf1 {[%clk
0:00:04.6]} 86. Kh2 {[%clk 0:00:03.7]} 86... Kf2 {[%clk 0:00:05]} 87. Kh3 {[%clk
0:00:04.2]} 87... Kg1 {[%clk 0:00:04.7]} 88. g3 {[%clk 0:00:04.8]} 88... Kf2
{[%clk 0:00:04.6]} 89. gxf4 {[%clk 0:00:04.6]} 89... Kxf3 {[%clk 0:00:04.4]} 0-1

[Event "*** Titled Tuesday Blitz"]
[Site "Chess.com"]
[Date "2020.11.24"]
[Round "2"]
[White "IrishMonkey"]
[Black "hansen"]
[Result "0-1"]
[WhiteElo "2559"]
[BlackElo "2934"]
[TimeControl "180+1"]
[EndTime "10:28:20 PST"]
[Termination "hansen won by resignation"]

1. d4 {[%clk 0:03:00.9]} 1... Nf6 {[%clk 0:02:59.8]} 2. c4 {[%clk 0:03:00.4]}
2... e6 {[%clk 0:02:53.7]} 3. e3 {[%clk 0:03:00.9]} 3... c5 {[%clk 0:02:52.5]}
4. Nc3 {[%clk 0:03:00]} 4... d5 {[%clk 0:02:48.3]} 5. Nf3 {[%clk 0:02:59.3]}
5... Nc6 {[%clk 0:02:48.3]} 6. Be2 {[%clk 0:02:58.5]} 6... dxc4 {[%clk
0:02:40.2]} 7. Bxc4 {[%clk 0:02:57.6]} 7... Be7 {[%clk 0:02:40.4]} 8. O-O {[%clk
0:02:54.5]} 8... O-O {[%clk 0:02:40.8]} 9. Re1 {[%clk 0:02:50.8]} 9... a6 {[%clk
0:02:32.4]} 10. a3 {[%clk 0:02:50.1]} 10... b5 {[%clk 0:02:27.8]} 11. Ba2 {[%clk
0:02:49.8]} 11... Bb7 {[%clk 0:02:28.2]} 12. Qc2 {[%clk 0:02:30.1]} 12... cxd4
{[%clk 0:02:25.7]} 13. Nxd4 {[%clk 0:02:29.7]} 13... Nxd4 {[%clk 0:02:25.7]} 14.
exd4 {[%clk 0:02:27.8]} 14... Qxd4 {[%clk 0:02:26]} 15. Be3 {[%clk 0:02:25.4]}
15... Qg4 {[%clk 0:02:25.5]} 16. f3 {[%clk 0:02:12.3]} 16... Bxf3 {[%clk
0:02:22.3]} 0-1

[Event "*** Titled Tuesday Blitz"]
[Site "Chess.com"]
[Date "2020.11.24"]
[Round "2"]
[White "RobPeresian"]
[Black "ajedrezhoy"]
[Result "1-0"]
[WhiteElo "2445"]
[BlackElo "2220"]
[TimeControl "180+1"]
[EndTime "10:28:59 PST"]
[Termination "RobPeresian won by resignation"]

1. Nf3 {[%clk 0:03:00.9]} 1... Nf6 {[%clk 0:02:57.1]} 2. c4 {[%clk 0:03:01]}
2... c5 {[%clk 0:02:55.7]} 3. Nc3 {[%clk 0:03:01.1]} 3... d5 {[%clk 0:02:53.9]}
4. cxd5 {[%clk 0:03:00.8]} 4... Nxd5 {[%clk 0:02:53.9]} 5. Nxd5 {[%clk
0:03:01.5]} 5... Qxd5 {[%clk 0:02:53]} 6. d3 {[%clk 0:03:02.1]} 6... Nc6 {[%clk
0:02:51.6]} 7. g3 {[%clk 0:03:02.5]} 7... g6 {[%clk 0:02:39]} 8. Bg2 {[%clk
0:03:02.5]} 8... Bg7 {[%clk 0:02:38.9]} 9. O-O {[%clk 0:03:03.1]} 9... O-O
{[%clk 0:02:38.7]} 10. Be3 {[%clk 0:03:03.6]} 10... Qd6 {[%clk 0:02:38.2]} 11.
Nd2 {[%clk 0:03:03.1]} 11... b6 {[%clk 0:02:36.4]} 12. Rb1 {[%clk 0:03:01.5]}
12... Bb7 {[%clk 0:02:31.8]} 13. a3 {[%clk 0:03:01.6]} 13... a5 {[%clk
0:02:30.1]} 14. Nc4 {[%clk 0:02:59.2]} 14... Qd8 {[%clk 0:02:17.7]} 15. b4
{[%clk 0:02:53.5]} 15... axb4 {[%clk 0:02:16.5]} 16. axb4 {[%clk 0:02:53.4]}
16... cxb4 {[%clk 0:02:08.1]} 17. Nxb6 {[%clk 0:02:49.7]} 17... Ra6 {[%clk
0:01:49.4]} 18. Nd5 {[%clk 0:02:44.2]} 18... Bc3 {[%clk 0:01:24]} 19. Nxc3
{[%clk 0:02:42.7]} 19... bxc3 {[%clk 0:01:23.5]} 20. Rxb7 {[%clk 0:02:42.4]} 1-0

[Event "*** Titled Tuesday Blitz"]
[Site "Chess.com"]
[Date "2020.11.24"]
[Round "2"]
[White "Kretov_Evgenij"]
[Black "katchesskat"]
[Result "1-0"]
[WhiteElo "2464"]
[BlackElo "2257"]
[TimeControl "180+1"]
[EndTime "10:29:11 PST"]
[Termination "Kretov_Evgenij won by checkmate"]

1. d4 {[%clk 0:03:00.9]} 1... c5 {[%clk 0:03:00.9]} 2. d5 {[%clk 0:03:00.8]}
2... e5 {[%clk 0:02:59.5]} 3. Nc3 {[%clk 0:03:01]} 3... a6 {[%clk 0:02:59.8]} 4.
e4 {[%clk 0:03:01.3]} 4... d6 {[%clk 0:02:59.5]} 5. a4 {[%clk 0:03:01.1]} 5...
Ne7 {[%clk 0:02:59.5]} 6. f4 {[%clk 0:03:00.9]} 6... exf4 {[%clk 0:02:59.3]} 7.
Bxf4 {[%clk 0:03:01]} 7... Ng6 {[%clk 0:02:59.4]} 8. Bg3 {[%clk 0:03:01.2]} 8...
Be7 {[%clk 0:03:00]} 9. Nf3 {[%clk 0:03:01.3]} 9... Bg4 {[%clk 0:03:00]} 10. Bd3
{[%clk 0:02:56]} 10... Bxf3 {[%clk 0:02:54.9]} 11. gxf3 {[%clk 0:02:55.5]} 11...
O-O {[%clk 0:02:53.5]} 12. Qe2 {[%clk 0:02:55.1]} 12... Bf6 {[%clk 0:02:53.6]}
13. O-O-O {[%clk 0:02:54.3]} 13... Bxc3 {[%clk 0:02:53]} 14. bxc3 {[%clk
0:02:54.6]} 14... Ne5 {[%clk 0:02:45]} 15. f4 {[%clk 0:02:52.1]} 15... Ng6
{[%clk 0:02:37.4]} 16. h4 {[%clk 0:02:51.4]} 16... Qa5 {[%clk 0:02:34.3]} 17. h5
{[%clk 0:02:51.5]} 17... Ne7 {[%clk 0:02:33.7]} 18. e5 {[%clk 0:02:50.5]} 18...
Qxc3 {[%clk 0:02:21.9]} 19. Qe4 {[%clk 0:02:50.1]} 19... g6 {[%clk 0:02:14.2]}
20. hxg6 {[%clk 0:02:46.5]} 20... fxg6 {[%clk 0:02:11.8]} 21. exd6 {[%clk
0:02:45.1]} 21... Nf5 {[%clk 0:02:09.3]} 22. Qe6+ {[%clk 0:02:37.1]} 22... Kg7
{[%clk 0:02:09]} 23. Bxf5 {[%clk 0:02:15.1]} 23... Rxf5 {[%clk 0:02:06.8]} 24.
Qe7+ {[%clk 0:02:14.9]} 24... Rf7 {[%clk 0:02:03.5]} 25. Rxh7+ {[%clk
0:02:13.9]} 25... Kxh7 {[%clk 0:02:00.2]} 26. Qxf7+ {[%clk 0:02:14]} 26... Kh6
{[%clk 0:01:56.3]} 27. Rh1# {[%clk 0:02:13.4]} 1-0